fUSD/lending_fUSD_20260126
["ID","MTS","AMOUNT","RATE_DAILY","PERIOD"]
[403594338,1769398234098,-399952.06733829,0.00014883,2]
[403594339,1769398234110,-24397.76988013,0.00014883,2]
[403594340,1769398234122,-15125.0720577,0.00014883,2]
[403594341,1769398234137,-41089.40674407,0.00014883,2]
[403594342,1769398234148,-2850.15,0.00014883,2]
[403594343,1769398234198,-2303.22682107,0.00014883,2]
[403594344,1769398234209,-1741.21936042,0.00014883,2]
[403594350,1769398238542,-515.69082538,0.00014883,2]
[403594351,1769398238555,-7047.3654783,0.00014883,2]
[403594352,1769398238567,-933.13714092,0.00014883,2]
[403594353,1769398238580,-3134.24564041,0.00014883,2]
[403594354,1769398238591,-7317.39080471,0.00014883,2]
[403594355,1769398238603,-1741.65737482,0.00014883,2]
[403594356,1769398238706,-6955.0000005,0.00014883,2]
[403594357,1769398238721,-860.85068214,0.00014883,2]
[403594402,1769398240411,-4805.69181895,0.00014883,2]
[403594403,1769398240466,-611.01346306,0.00014883,2]
[403594404,1769398240522,-418333.52709881,0.00014883,2]
[403594405,1769398240533,-16957.25349034,0.00014883,2]
[403594406,1769398240544,-296.9,0.00014883,2]
[403594428,1769398243659,-504.51616914,0.00014883,2]
[403594429,1769398243670,-872.26117996,0.00014883,2]
[403594430,1769398243687,-297.466,0.00014883,2]
[403594431,1769398243790,-729.25294462,0.00014883,2]
[403594433,1769398243801,-925.9169098,0.00014883,2]
[403594445,1769398246765,-513.11478339,0.00014883,2]
[403594446,1769398246774,-18301.41617994,0.00014883,2]
[403594447,1769398246836,-1901.30753297,0.00014883,2]
[403594448,1769398246847,-2187.70181487,0.00014883,2]
[403594449,1769398246858,-1362.65454814,0.00014883,2]
[403594450,1769398246889,-1110.06940007,0.00014883,2]
[403594454,1769398246975,-14838.80130047,0.00014883,2]
[403594455,1769398246985,-166.66,0.00014909,2]
[403594456,1769398246994,-500.0,0.00014928,2]
[403594457,1769398247003,-500.0,0.00014934,2]
[403594458,1769398247012,-500.0,0.00014934,2]
[403594459,1769398247022,-500.0,0.00014935,2]
[403594460,1769398247031,-500.0,0.00014983,2]
[403594461,1769398247040,-154.63102482,0.00014984,2]
[403594462,1769398247049,-500.0,0.00014989,2]
[403594463,1769398247058,-500.0,0.00014989,2]
[403594464,1769398247067,-500.0,0.00014989,2]
[403594465,1769398247076,-500.0,0.0001499,2]
[403594466,1769398247085,-500.0,0.0001499,2]
[403594467,1769398247094,-486.94233919,0.0001499,2]
[403594514,1769399235374,-166.06,0.00013864,2]
[403594515,1769399235393,-200.0,0.00013901,2]
[403594516,1769399235412,-265.0,0.00013921,2]
[403594517,1769399235432,-308.03,0.00013921,2]
[403594518,1769399235450,-455.4139,0.00014499,2]
[403594519,1769399235469,-305.22011194,0.00014585,2]
[403594520,1769399235489,-1200.0,0.00014597,2]
[403594521,1769399235508,-300.0,0.00014598,2]
[403594522,1769399235527,-300.0,0.00014598,2]
[403594523,1769399235547,-150.0,0.00014598,2]
[403594524,1769399235567,-300.0,0.00014598,2]
[403594525,1769399235591,-500.0,0.00014599,2]
[403594526,1769399235617,-423.31498562,0.00014599,2]
[403594540,1769399431412,-300.0,0.00014498,2]
[403594541,1769399431424,-353.0,0.00014498,2]
[403594542,1769399431435,-564.52309511,0.00014498,2]
[403594543,1769399431466,-282.47690489,0.00014498,2]
[403594544,1769399431476,-1520.9778275,0.00014499,2]
[403594545,1769399431487,-6844.20379882,0.00014499,2]
[403594546,1769399431521,-11175.5721865,0.00014499,2]
[403594547,1769399431532,-1413.25471627,0.00014499,2]
[403594548,1769399431543,-657.58326595,0.00014499,2]
[403594549,1769399431574,-2373.18690496,0.00014499,2]
[403594550,1769399431583,-150.0,0.00014598,2]
[403594551,1769399431592,-76.68501438,0.00014599,2]
[403594552,1769399431602,-500.0,0.00014599,2]
[403594553,1769399431611,-500.0,0.00014599,2]
[403594554,1769399431621,-500.0,0.00014599,2]
[403594555,1769399431630,-146.38525956,0.00014599,2]
[403594556,1769399431641,-353.61474044,0.00014599,2]
[403594557,1769399431651,-169.2913766,0.00014599,2]
[403594558,1769399431662,-330.7086234,0.00014599,2]
[403594559,1769399431672,-41.80137758,0.00014599,2]
[403594561,1769399431702,-375.12799992,0.00014599,2]
[403594563,1769399431713,-83.0706225,0.00014599,2]
[403594565,1769399431723,-500.0,0.00014599,2]
[403594567,1769399431732,-252.53755604,0.00014599,2]
[403594569,1769399431743,-247.46244396,0.00014599,2]
[403594572,1769399431752,-285.88396003,0.00014599,2]
[403594574,1769399431764,-214.11603997,0.00014599,2]
[403594576,1769399431773,-330.21670262,0.00014599,2]
[403594578,1769399431784,-169.78329738,0.00014599,2]
[403594580,1769399431793,-500.0,0.00014599,2]
[403594582,1769399431803,-393.18884913,0.00014599,2]
[403594584,1769399431814,-106.81115087,0.00014599,2]
[403594586,1769399431823,-293.18884913,0.00014599,2]
[403594588,1769399431834,-206.81115087,0.00014599,2]
[403594590,1769399431844,-512.00177218,0.00014599,2]
[403594592,1769399431853,-500.0,0.00014599,2]
[403594594,1769399431863,-500.0,0.00014599,2]
[403594596,1769399431872,-500.0,0.00014599,2]
[403594598,1769399431881,-500.0,0.00014599,2]
[403594600,1769399431890,-500.0,0.00014599,2]
[403594602,1769399431899,-454.48414199,0.00014599,2]
[403594696,1769399437628,-45.51585801,0.00014599,2]
[403594697,1769399437638,-500.0,0.00014599,2]
[403594698,1769399437648,-500.0,0.00014599,2]
[403594699,1769399437659,-358.06165335,0.00014599,2]
[403594700,1769399437670,-141.93834665,0.00014599,2]
[403594701,1769399437680,-500.0,0.00014599,2]
[403594702,1769399437689,-390.8400002,0.00014599,2]
[403594703,1769399437701,-109.1599998,0.00014599,2]
[403594704,1769399437712,-500.0,0.00014599,2]
[403594705,1769399437722,-500.0,0.00014599,2]
[403594706,1769399437731,-500.0,0.00014599,2]
[403594707,1769399437741,-415.82475571,0.00014599,2]
[403594708,1769399437752,-84.17524429,0.00014599,2]
[403594709,1769399437762,-500.0,0.00014599,2]
[403594710,1769399437771,-500.0,0.00014599,2]
[403594711,1769399437781,-500.0,0.00014599,2]
[403594712,1769399437790,-500.0,0.00014599,2]
[403594714,1769399437799,-500.0,0.00014599,2]
[403594716,1769399437809,-500.0,0.00014599,2]
[403594717,1769399437818,-500.0,0.00014599,2]
[403594718,1769399437828,-259.46381619,0.00014599,2]
[403594719,1769399437840,-140.53618381,0.00014599,2]
[403594720,1769399437849,-500.0,0.00014599,2]
[403594721,1769399437859,-500.0,0.00014599,2]
[403594722,1769399437869,-500.0,0.00014599,2]
[403594723,1769399437878,-500.0,0.00014599,2]
[403594724,1769399437888,-500.0,0.00014599,2]
[403594725,1769399437897,-500.0,0.00014599,2]
[403594726,1769399437907,-500.0,0.00014599,2]
[403594727,1769399437917,-100.04499707,0.00014599,2]
[403594728,1769399437929,-404.04393488,0.00014599,2]
[403594729,1769399437938,-283.30743119,0.00014599,2]
[403594730,1769399437953,-230.56152737,0.00014599,2]
[403594731,1769399437962,-500.0,0.00014599,2]
[403594732,1769399437972,-270.72797468,0.00014599,2]
[403594733,1769399437981,-203.42354027,0.00014599,2]
[403594734,1769399437995,-500.0,0.00014599,2]
[403594735,1769399438004,-500.0,0.00014599,2]
[403594737,1769399438013,-430.63120653,0.00014599,2]
[403594738,1769399438023,-500.0,0.0001469,2]
[403594739,1769399438034,-500.0,0.0001469,2]
[403594740,1769399438043,-566.80805919,0.0001469,2]
[403594741,1769399438190,-10.72368611,0.0001469,2]
[403594742,1769399438200,-500.0,0.00014715,2]
[403594743,1769399438209,-30.72509134,0.00014715,2]
[403594744,1769399438229,-119.27490866,0.00014715,2]
[403594745,1769399438239,-150.0,0.00014715,2]
[403594746,1769399438249,-150.0,0.00014715,2]
[403594747,1769399438259,-500.0,0.00014715,2]
[403594748,1769399438270,-258.52186183,0.00014715,2]
[403594749,1769399438281,-767.08,0.00014736,2]
[403594750,1769399438291,-767.08,0.00014759,2]
[403594751,1769399438301,-500.0,0.0001477,2]
[403594752,1769399438311,-150.0,0.0001477,2]
[403594753,1769399438320,-150.0,0.0001477,2]
[403594754,1769399438330,-500.0,0.0001477,2]
[403594755,1769399438340,-345.99122003,0.00014783,2]
[403594884,1769399439805,-421.08877997,0.00014783,2]
[403594886,1769399439814,-767.08,0.00014806,2]
[403594888,1769399439824,-300.0,0.00014825,2]
[403594890,1769399439833,-150.0,0.00014825,2]
[403594892,1769399439843,-200.0,0.00014825,2]
[403594894,1769399439853,-500.0,0.00014825,2]
[403594896,1769399439863,-767.08,0.00014829,2]
[403594898,1769399439872,-3467.81762601,0.00014836,2]
[403594900,1769399439882,-151.87,0.00014852,2]
[403594902,1769399439891,-767.08,0.00014852,2]
[403594904,1769399439901,-200.0,0.00014869,2]
[403594906,1769399439910,-200.0,0.0001487,2]
[403594913,1769399439980,-200.0,0.0001487,2]
[403594914,1769399439993,-200.0,0.0001487,2]
[403594915,1769399440002,-767.08,0.00014876,2]
[403594916,1769399440011,-150.0,0.00014879,2]
[403594918,1769399440020,-379.16581227,0.00014879,2]
[403594920,1769399440030,-189.94439612,0.0001488,2]
[403594922,1769399440040,-2995.8455248,0.00014883,2]
[403594925,1769399440050,-515.15320229,0.00014883,2]
[403594927,1769399440060,-530.81148496,0.00014883,2]
[403594928,1769399440069,-525.28748156,0.00014883,2]
[403594930,1769399440078,-646.08605547,0.00014883,2]
[403594932,1769399440087,-512.41742029,0.00014883,2]
[403594934,1769399440096,-500.0,0.00014883,2]
[403594936,1769399440105,-173307.1408057,0.00014883,2]
[403594938,1769399440115,-500.0,0.00014883,2]
[403594940,1769399440135,-500.0,0.00014883,2]
[403594941,1769399440150,-2939.0522,0.00014894,2]
[403594943,1769399440161,-1000.0,0.00014894,2]
[403594944,1769399440170,-767.08,0.00014899,2]
[403594945,1769399440180,-500.0,0.00014904,2]
[403594946,1769399440190,-767.08,0.00014922,2]
[403594947,1769399440200,-166.6,0.00014926,2]
[403594948,1769399440209,-150.0,0.00014934,2]
[403594949,1769399440219,-578.20924308,0.00014936,2]
[403594950,1769399440228,-854.2589148,0.00014936,2]
[403594951,1769399440237,-177.18113843,0.00014936,2]
[403594952,1769399440248,-250.0,0.00014936,2]
[403594953,1769399440258,-250.0,0.00014936,2]
[403594954,1769399440267,-250.0,0.00014936,2]
[403594955,1769399440277,-370.15696051,0.00014936,2]
[403594956,1769399440286,-174.61919141,0.00014936,2]
[403594957,1769399440295,-721.12765535,0.00014936,2]
[403594959,1769399440305,-2500.0,0.00014936,2]
[403594960,1769399440314,-2500.0,0.00014936,2]
[403594961,1769399440323,-2500.0,0.00014936,2]
[403594962,1769399440333,-2500.0,0.00014936,2]
[403594964,1769399440342,-151.0,0.00014936,2]
[403594966,1769399440352,-2500.0,0.00014936,2]
[403594968,1769399440361,-2500.0,0.00014936,2]
[403594969,1769399440370,-2500.0,0.00014936,2]
[403594970,1769399440379,-2500.0,0.00014936,2]
[403594971,1769399440388,-2500.0,0.00014936,2]
[403594972,1769399440398,-2500.0,0.00014936,2]
[403594973,1769399440407,-2629.63862371,0.00014936,2]
[403594974,1769399440416,-3000.0,0.00014936,2]
[403594975,1769399440429,-3000.0,0.00014936,2]
[403594976,1769399440439,-250.0,0.00014936,2]
[403594977,1769399440448,-3000.0,0.00014936,2]
[403594978,1769399440458,-250.0,0.00014936,2]
[403594979,1769399440467,-3000.0,0.00014936,2]
[403594980,1769399440477,-500.0,0.00014936,2]
[403594981,1769399440486,-322.6107,0.00014936,2]
[403594982,1769399440495,-250.0,0.00014936,2]
[403594983,1769399440504,-3000.0,0.00014936,2]
[403594984,1769399440514,-500.0,0.00014936,2]
[403594985,1769399440523,-250.0,0.00014936,2]
[403594986,1769399440532,-3000.0,0.00014936,2]
[403594987,1769399440541,-500.0,0.00014936,2]
[403594988,1769399440551,-250.0,0.00014936,2]
[403594989,1769399440560,-3000.0,0.00014936,2]
[403594990,1769399440569,-500.0,0.00014936,2]
[403594991,1769399440579,-153.67529487,0.00014936,2]
[403594992,1769399440589,-3000.0,0.00014936,2]
[403594993,1769399440598,-500.0,0.00014936,2]
[403594994,1769399440608,-3000.0,0.00014936,2]
[403594995,1769399440617,-500.0,0.00014936,2]
[403594996,1769399440627,-3000.0,0.00014936,2]
[403594997,1769399440636,-606.53973097,0.00014936,2]
[403594998,1769399440646,-3000.0,0.00014936,2]
[403594999,1769399440655,-1000.0,0.00014936,2]
[403595000,1769399440666,-1000.0,0.00014936,2]
[403595001,1769399440675,-1000.0,0.00014936,2]
[403595002,1769399440684,-1000.0,0.00014936,2]
[403595003,1769399440693,-1000.0,0.00014936,2]
[403595004,1769399440702,-1000.0,0.00014936,2]
[403595005,1769399440711,-1000.0,0.00014936,2]
[403595006,1769399440720,-1000.0,0.00014936,2]
[403595007,1769399440729,-1083.44990267,0.00014936,2]
[403595008,1769399440739,-151.0,0.00014936,2]
[403595009,1769399440748,-250.0,0.00014936,2]
[403595010,1769399440758,-151.0,0.00014936,2]
[403595011,1769399440767,-151.0,0.00014936,2]
[403595012,1769399440777,-250.0,0.00014936,2]
[403595013,1769399440786,-151.0,0.00014936,2]
[403595014,1769399440795,-250.0,0.00014936,2]
[403595015,1769399440804,-151.0,0.00014936,2]
[403595017,1769399440813,-296.05757946,0.00014936,2]
[403595019,1769399440823,-151.0,0.00014936,2]
[403595020,1769399440831,-151.0,0.00014936,2]
[403595021,1769399440840,-151.0,0.00014936,2]
[403595022,1769399440849,-151.0,0.00014936,2]
[403595023,1769399440858,-151.0,0.00014936,2]
[403595024,1769399440867,-151.0,0.00014936,2]
[403595025,1769399440875,-836.2,0.00014936,2]
[403595026,1769399440884,-767.08,0.00014945,2]
[403595027,1769399440893,-767.08,0.00014969,2]
[403595028,1769399440901,-189.50024159,0.00014989,2]
[403595029,1769399440911,-1000.0,0.0001499,2]
[403595030,1769399440920,-329.58686501,0.0001499,2]
[403595031,1769399440928,-767.08,0.00014992,2]
[403595032,1769399440937,-166.9,0.00014992,2]
[403595033,1769399440946,-521.19338893,0.00014993,2]
[403595034,1769399440954,-500.0,0.00014993,2]
[403595035,1769399440963,-500.0,0.00014993,2]
[403595036,1769399440972,-2924.4938088,0.00014994,2]
[403595037,1769399440980,-767.08,0.00015015,2]
[403595038,1769399440991,-767.08,0.00015038,2]
[403595039,1769399441003,-8485.28,0.0001505,2]
[403595040,1769399441013,-767.08,0.00015062,2]
[403595041,1769399441023,-767.08,0.00015085,2]
[403595042,1769399441033,-767.08,0.00015108,2]
[403595043,1769399441043,-767.08,0.00015131,2]
[403595044,1769399441052,-205.0,0.00015151,2]
[403595045,1769399441061,-767.08,0.00015155,2]
[403595046,1769399441072,-200.0,0.0001517,2]
[403595047,1769399441081,-3467.81762596,0.00015176,2]
[403595048,1769399441091,-767.08,0.00015178,2]
[403595049,1769399441100,-468.53,0.00015193,2]
[403595050,1769399441109,-166.66,0.00015198,2]
[403595051,1769399441118,-836.2,0.0001521,2]
[403595052,1769399441127,-5046.16752783,0.00015238,2]
[403595053,1769399441139,-151.0,0.00015309,2]
[403595054,1769399441156,-239.59,0.00015311,2]
[403595055,1769399441165,-173.53,0.00015337,2]
[403595056,1769399441174,-885.86649465,0.00015484,2]
[403595057,1769399441183,-181.08010149,0.00015484,2]
[403595058,1769399441193,-151.0,0.00015484,2]
[403595059,1769399441202,-836.2,0.00015484,2]
[403595060,1769399441211,-3467.81762596,0.00015517,2]
[403595061,1769399441220,-5046.16752781,0.00015534,2]
[403595062,1769399441229,-200.0,0.00015567,2]
[403595063,1769399441239,-166.06,0.00015597,2]
[403595064,1769399441248,-1000.0,0.00015634,2]
[403595065,1769399441257,-308.03,0.00015661,2]
[403595066,1769399441267,-750.0,0.00015699,2]
[403595067,1769399441276,-151.0,0.000157,2]
[403595068,1769399441285,-177.10409718,0.000157,2]
[403595069,1769399441295,-2000.0,0.000157,2]
[403595070,1769399441304,-255.0,0.00015722,2]
[403595071,1769399441313,-200.0,0.00015744,2]
[403595072,1769399441322,-836.2,0.00015758,2]
[403595073,1769399441332,-200.0,0.00015764,2]
[403595074,1769399441342,-166.79,0.00015797,2]
[403595075,1769399441351,-162.41,0.000158,2]
[403595076,1769399441360,-5000.0,0.000158,2]
[403595077,1769399441370,-200.0,0.00015807,2]
[403595078,1769399441379,-5046.16752781,0.0001583,2]
[403595079,1769399441388,-200.0,0.00015856,2]
[403595080,1769399441398,-3467.81762596,0.00015857,2]
[403595081,1769399441407,-166.6,0.0001589,2]
[403595082,1769399441417,-162.0,0.000159,2]
[403595083,1769399441427,-162.0,0.000159,2]
[403595084,1769399441436,-2508.0,0.000159,2]
[403595085,1769399441446,-2000.0,0.000159,2]
[403595086,1769399441456,-843.99,0.00015918,2]
[403595087,1769399441466,-253.31238298,0.00015948,2]
[403595088,1769399441482,-1680.0,0.00015948,2]
[403595089,1769399441493,-750.0,0.00015956,2]
[403595090,1769399441504,-500.0,0.00015982,2]
[403595091,1769399441513,-4604.99371209,0.00015983,2]
[403595092,1769399441523,-151.0,0.00015983,2]
[403595093,1769399441533,-380.530822,0.00015983,2]
[403595094,1769399441542,-380.530822,0.00015983,2]
[403595095,1769399441551,-380.530822,0.00015983,2]
[403595096,1769399441561,-380.530822,0.00015983,2]
[403595097,1769399441570,-1662.0,0.00016,2]
[403595098,1769399441580,-150.0,0.00016,2]
[403595099,1769399441590,-918.64355495,0.00016032,2]
[403595100,1769399441599,-187.78006525,0.00016032,2]
[403595101,1769399441608,-151.0,0.00016032,2]
[403595102,1769399441618,-836.2,0.00016032,2]
[403595103,1769399441627,-239.59,0.0001604,2]
[403595104,1769399441637,-2000.0,0.000161,2]
[403595105,1769399441646,-150.0,0.000161,2]
[403595106,1769399441655,-155.0,0.00016104,2]
[403595107,1769399441665,-5046.16752781,0.00016125,2]
[403595108,1769399441675,-2271.0,0.00016154,2]
[403595109,1769399441684,-2271.0,0.00016182,2]
[403595110,1769399441694,-3467.81762596,0.00016198,2]
[403595111,1769399441705,-150.0,0.000162,2]
[403595112,1769399441715,-2000.0,0.000163,2]
[403595113,1769399441724,-334.5472959,0.00016305,2]
[403595114,1769399441734,-836.2,0.00016306,2]
[403595115,1769399441743,-2271.0,0.0001633,2]
[403595116,1769399441752,-156.92550007,0.00016338,2]
[403595117,1769399441761,-150.37885895,0.00016338,2]
[403595118,1769399441771,-923.22863654,0.00016338,2]
[403595119,1769399441780,-2271.0,0.00016357,2]
[403595120,1769399441790,-200.0,0.000164,2]
[403595121,1769399441799,-1086.0,0.000164,2]
[403595122,1769399441808,-1086.0,0.000164,2]
[403595123,1769399441818,-1086.0,0.000164,2]
[403595124,1769399441827,-1086.0,0.000164,2]
[403595125,1769399441838,-1086.0,0.000164,2]
[403595126,1769399441848,-1086.0,0.000164,2]
[403595127,1769399441857,-1086.0,0.000164,2]
[403595128,1769399441866,-1086.0,0.000164,2]
[403595129,1769399441875,-1086.0,0.000164,2]
[403595130,1769399441884,-1086.0,0.000164,2]
[403595131,1769399441893,-151.0,0.00016418,2]
[403595132,1769399441904,-1266.0,0.00016418,2]
[403595133,1769399441913,-1266.0,0.00016418,2]
[403595134,1769399441922,-1266.0,0.00016418,2]
[403595135,1769399441931,-1266.0,0.00016418,2]
[403595136,1769399441942,-1266.0,0.00016418,2]
[403595137,1769399441952,-151.0,0.00016418,2]
[403595138,1769399441961,-151.72333202,0.00016418,2]
[403595139,1769399441971,-166.12685918,0.00016418,2]
[403595140,1769399441981,-158.0,0.00016418,2]
[403595141,1769399441992,-5046.16752781,0.00016421,2]
[403595142,1769399442003,-200.0,0.00016423,2]
[403595143,1769399442012,-2271.0,0.00016428,2]
[403595144,1769399442022,-151.0,0.00016428,2]
[403595145,1769399442032,-151.0,0.00016428,2]
[403595146,1769399442043,-154.63102482,0.00016428,2]
[403595147,1769399442053,-166.6,0.00016428,2]
[403595148,1769399442062,-520.13473548,0.00016437,2]
[403595149,1769399442073,-500.0,0.00016437,2]
[403595150,1769399442082,-10794.0,0.00016438,2]
[403595151,1769399442091,-150.0,0.00016438,2]
[403595152,1769399442100,-192.0,0.00016438,2]
[403595153,1769399442110,-200.0,0.00016438,2]
[403595154,1769399442119,-500.0,0.00016438,2]
[403595155,1769399442129,-517.53197336,0.00016438,2]
[403595156,1769399442139,-500.0,0.00016438,2]
[403595157,1769399442148,-500.0,0.00016438,2]
[403595158,1769399442158,-500.0,0.00016438,2]
[403595159,1769399442167,-501.32563192,0.00016438,2]
[403595160,1769399442176,-500.0,0.00016438,2]
[403595161,1769399442186,-489.64749692,0.00016438,2]
[403595162,1769399442196,-333.47608257,0.00016438,2]
[403595163,1769399442206,-500.0,0.00016438,2]
[403595164,1769399442216,-586.6720742,0.00016438,2]
[403595165,1769399442225,-500.30706646,0.00016438,2]
[403595166,1769399442234,-567.6660355,0.00016438,2]
[403595167,1769399442244,-500.0,0.00016438,2]
[403595168,1769399442253,-500.0,0.00016438,2]
[403595169,1769399442263,-500.0,0.00016438,2]
[403595170,1769399442273,-500.0,0.00016438,2]
[403595171,1769399442282,-516.29860768,0.00016438,2]
[403595172,1769399442291,-500.0,0.00016438,2]
[403595173,1769399442301,-501.72122921,0.00016438,2]
[403595174,1769399442311,-1438.92528024,0.00016438,2]
[403595175,1769399442320,-585.42855224,0.00016438,2]
[403595176,1769399442330,-552.64526227,0.00016438,2]
[403595177,1769399442340,-500.0,0.00016438,2]
[403595178,1769399442349,-160.545101,0.00016438,2]
[403595179,1769399442359,-501.67465248,0.00016438,2]
[403595180,1769399442369,-438.38069532,0.00016438,2]
[403595181,1769399442378,-500.0,0.00016438,2]
[403595182,1769399442388,-500.0,0.00016438,2]
[403595183,1769399442397,-500.0,0.00016438,2]
[403595184,1769399442406,-187.58734848,0.00016438,2]
[403595185,1769399442415,-540.49352345,0.00016438,2]
[403595186,1769399442424,-540.49352345,0.00016438,2]
[403595187,1769399442433,-540.49352345,0.00016438,2]
[403595188,1769399442443,-540.49352345,0.00016438,2]
[403595189,1769399442452,-540.49352345,0.00016438,2]
[403595190,1769399442461,-540.49352345,0.00016438,2]
[403595191,1769399442471,-540.49352345,0.00016438,2]
[403595192,1769399442480,-540.49352345,0.00016438,2]
[403595193,1769399442489,-540.49352345,0.00016438,2]
[403595194,1769399442498,-540.49352345,0.00016438,2]
[403595195,1769399442507,-540.49352345,0.00016438,2]
[403595196,1769399442517,-540.49352345,0.00016438,2]
[403595197,1769399442527,-540.49352345,0.00016438,2]
[403595198,1769399442537,-540.49352345,0.00016438,2]
[403595199,1769399442547,-540.49352345,0.00016438,2]
[403595200,1769399442557,-540.49352345,0.00016438,2]
[403595201,1769399442568,-540.49352345,0.00016438,2]
[403595202,1769399442577,-540.49352345,0.00016438,2]
[403595203,1769399442587,-540.49352345,0.00016438,2]
[403595204,1769399442597,-540.49352345,0.00016438,2]
[403595205,1769399442606,-540.49352345,0.00016438,2]
[403595206,1769399442615,-540.49352345,0.00016438,2]
[403595207,1769399442624,-540.49352345,0.00016438,2]
[403595208,1769399442634,-540.49352345,0.00016438,2]
[403595209,1769399442644,-540.49352345,0.00016438,2]
[403595210,1769399442653,-540.49352345,0.00016438,2]
[403595211,1769399442662,-540.49352345,0.00016438,2]
[403595212,1769399442671,-540.49352345,0.00016438,2]
[403595213,1769399442681,-500.0,0.00016438,2]
[403595214,1769399442690,-540.49352345,0.00016438,2]
[403595215,1769399442699,-540.49352345,0.00016438,2]
[403595216,1769399442708,-540.49352345,0.00016438,2]
[403595217,1769399442718,-540.49352345,0.00016438,2]
[403595218,1769399442727,-540.49352345,0.00016438,2]
[403595219,1769399442738,-540.49352345,0.00016438,2]
[403595220,1769399442748,-540.49352345,0.00016438,2]
[403595221,1769399442757,-540.49352345,0.00016438,2]
[403595222,1769399442768,-540.49352345,0.00016438,2]
[403595223,1769399442777,-540.49352345,0.00016438,2]
[403595224,1769399442787,-540.49352345,0.00016438,2]
[403595225,1769399442796,-540.49352345,0.00016438,2]
[403595226,1769399442805,-540.49352345,0.00016438,2]
[403595227,1769399442815,-540.49352345,0.00016438,2]
[403595228,1769399442824,-540.49352345,0.00016438,2]
[403595229,1769399442833,-540.49352345,0.00016438,2]
[403595230,1769399442842,-540.49352345,0.00016438,2]
[403595231,1769399442851,-540.49352345,0.00016438,2]
[403595232,1769399442860,-540.49352345,0.00016438,2]
[403595233,1769399442870,-540.49352345,0.00016438,2]
[403595234,1769399442879,-540.49352345,0.00016438,2]
[403595235,1769399442888,-540.49352345,0.00016438,2]
[403595236,1769399442897,-540.49352345,0.00016438,2]
[403595237,1769399442906,-540.49352345,0.00016438,2]
[403595238,1769399442916,-540.49352345,0.00016438,2]
[403595239,1769399442926,-540.49352345,0.00016438,2]
[403595240,1769399442935,-540.49352345,0.00016438,2]
[403595241,1769399442945,-540.49352345,0.00016438,2]
[403595242,1769399442954,-540.49352345,0.00016438,2]
[403595243,1769399442963,-540.49352345,0.00016438,2]
[403595244,1769399442972,-540.49352345,0.00016438,2]
[403595245,1769399442982,-540.49352345,0.00016438,2]
[403595246,1769399442992,-317.64653468,0.00016438,2]
[403595247,1769399443004,-860.41197951,0.00016438,2]
[403595248,1769399443013,-860.41197951,0.00016438,2]
[403595249,1769399443023,-860.41197951,0.00016438,2]
[403595250,1769399443033,-860.41197951,0.00016438,2]
[403595251,1769399443042,-860.41197951,0.00016438,2]
[403595252,1769399443051,-860.41197951,0.00016438,2]
[403595253,1769399443061,-860.41197951,0.00016438,2]
[403595254,1769399443071,-860.41197951,0.00016438,2]
[403595255,1769399443080,-860.41197951,0.00016438,2]
[403595256,1769399443089,-860.41197951,0.00016438,2]
[403595257,1769399443099,-860.41197951,0.00016438,2]
[403595258,1769399443107,-860.41197951,0.00016438,2]
[403595259,1769399443117,-860.41197951,0.00016438,2]
[403595260,1769399443126,-860.41197951,0.00016438,2]
[403595261,1769399443135,-860.41197951,0.00016438,2]
[403595262,1769399443145,-860.41197951,0.00016438,2]
[403595263,1769399443155,-860.41197951,0.00016438,2]